Cogmind - Beta 11 @@@ ROGUE MODE // 2022.03.28 @ 10:25:46 Player: Happytimes Result: Self-destructed Performance ------------- Evolutions (1) 500 Regions Visited (4) 800 Robots Destroyed (35) 175 Value Destroyed (671) 671 Prototype IDs (1) 20 Alien Tech Used (0) 0 Bonus (-35) -35 TOTAL SCORE: 2131 Bonus ------- Follower Combat Kills 156 Friendly Fire -191 Cogmind --------- Core Integrity 366/400 Matter 254/300 Energy 238/280 System Corruption 2% Temperature Warm (144) Movement Hovering (120) Ox1 Location -9/Mines Parts ------- > --- POWER (1) -------- Heavy Ion Engine > --- PROPULSION (3) --- Hover Unit > --- UTILITY (3) ------ Small Storage Unit Weight Redist. System Hacking Suite > --- WEAPON (2) ------- Heavy EM Pulse Gun Heavy EM Pulse Gun > --- INVENTORY (8) ---- Hover Unit Shield Generator Beam Cannon Grenade Launcher Datajack Welding Torch Plasma Cutter Heavy Explosive Trap Peak State ------------ > --- POWER ------------ Heavy Ion Engine > --- PROPULSION ------- Hover Unit Hover Unit Hover Unit > --- UTILITY ---------- Small Storage Unit Weight Redist. System Hacking Suite > --- WEAPON ----------- Heavy EM Pulse Gun Heavy EM Pulse Gun > --- INVENTORY -------- Hover Unit Shield Generator Beam Cannon Grenade Launcher Datajack Welding Torch Plasma Cutter Heavy Explosive Trap [Rating: 17] Favorites ----------- Power Light Ion Engine Engine Light Ion Engine Power Core Light Nuclear Core Propulsion Hover Unit Leg Improved Aluminum Leg Wheel Compact Wheel Hover Unit Hover Unit Utility Small Storage Unit Device Weight Redist. System Storage Small Storage Unit Hackware Hacking Suite Weapon Heavy EM Pulse Gun Energy Gun Heavy EM Pulse Gun Energy Cannon Light EM Pulse Cannon Ballistic Gun Assault Rifle Launcher Grenade Launcher Slashing Weapon Mining Claw Build | -11 -10 -10 -9 -9 ------- Run | Scr Mat Min Mat Min Slots Evolved 2 | . . . 2 . Power . | . . . . . Propulsion 1 | . . . 1 . Utility 1 | . . . 1 . Weapon . | . . . . . Parts Attached 35 | 6 11 2 14 2 Power 3 | 1 . . 2 . Engine 2 | 1 . . 1 . Core 1 | . . . 1 . Reactor . | . . . . . Propulsion 14 | 2 4 1 5 2 Treads . | . . . . . Leg 2 | . 2 . . . Wheel 2 | 2 . . . . Hover 10 | . 2 1 5 2 Flight . | . . . . . Utility 3 | 1 1 . 1 . Device 1 | . . . 1 . Storage 1 | 1 . . . . Processor . | . . . . . Hackware 1 | . 1 . . . Protection . | . . . . . Artifact . | . . . . . Weapon 15 | 2 6 1 6 . Energy Gun 7 | 1 1 . 5 . Energy Cannon 3 | . 3 . . . Ballistic Gun 1 | 1 . . . . Ballistic Cannon . | . . . . . Launcher 2 | . . 1 1 . Special Weapon . | . . . . . Impact Weapon . | . . . . . Slashing Weapon 2 | . 2 . . . Piercing Weapon . | . . . . . Special Melee Weapon . | . . . . . Unidentified Prototypes 1 | . . . 1 . Parts Lost 4 | . . 1 1 2 Power . | . . . . . Propulsion 4 | . . 1 1 2 Utility . | . . . . . Weapon . | . . . . . Highest Loss Streak 2 | . . 1 1 2 To Critical Strikes . | . . . . . Average Slot Usage (%) 91 | . 89 89 93 98 Engine 12 | . 14 14 9 11 Leg 1 | . 4 . . . Wheel 5 | . 14 . . . Hover 19 | . 8 18 29 31 Device 3 | . . . 8 11 Storage 12 | . 14 14 11 11 Hackware 9 | . 5 14 11 11 Energy Gun 11 | . 6 . 20 22 Energy Cannon 3 | . 8 . . . Ballistic Gun 2 | . 6 . . . Launcher 1 | . . 9 . . Slashing Weapon 5 | . 5 18 . . Naked Turns . | . . . . . Heaviest Build 19 | 12 16 13 19 19 Greatest Support 32 | 32 32 12 24 24 Greatest Overweight (x) 2 | . 1 2 2 . Average Overweight (x) . | . . . . . Largest Inventory Capacity 8 | 8 8 8 8 8 Average Capacity 7 | 6 8 8 8 8 Most Carried 8 | 5 8 8 8 8 Average Carried 6 | 2 5 7 7 7 Final Capacity 8 | 8 8 8 8 8 Final Carried 8 | 1 7 8 8 8 Class Distribution -------------------- 64% | Mutant 35% | Scavenger-Mutant Dominant Class ---------------- Mutant | -10/Materials Mutant | -10/Mines Scavenger-Mutant | -9/Materials Scavenger-Mutant | -9/Mines Resources | -11 -10 -10 -9 -9 ----------- Run | Scr Mat Min Mat Min Matter Collected 568 | 191 227 25 111 14 Remotely . | . . . . . Salvage Created 1090 | . 580 35 475 . Parts 71 | . 39 6 26 . Haulers Intercepted 5 | . 2 . 3 . Recyclers Shooed 1 | . 1 . . . Parts Field Recycled . | . . . . . Retrieved Matter . | . . . . . Parts Self-Destructed . | . . . . . Prevented . | . . . . . Kills | -11 -10 -10 -9 -9 ------- Run | Scr Mat Min Mat Min Combat Hostiles Destroyed 19 | . 9 2 8 . Melee 3 | . 3 . . . Guns 6 | . 3 . 3 . AOE 10 | . 3 2 5 . Classes Destroyed 9 | . 5 2 2 . Worker 3 | . 1 . 2 . Builder 1 | . 1 . . . Tunneler 1 | . . 1 . . Hauler 5 | . 2 . 3 . Operator 4 | . 3 . 1 . Watcher 1 | . . . 1 . Swarmer 6 | . . 2 4 . Grunt 13 | . 9 . 4 . Sentry 1 | . . . 1 . Best Kill Streak 8 | . 8 3 5 . Combat Bots Only 4 | . 4 2 4 . Max Kills in Single Turn 4 | . 2 3 4 . Gunslinging . | . . . . . Exploded 3 | . 1 2 3 . Melee 1 | . 1 . . . Uniques/NPCs Destroyed . | . . . . . Combat | -11 -10 -10 -9 -9 -------- Run | Scr Mat Min Mat Min Damage Taken 528 | . 195 15 152 166 Core 88 | . 54 . 10 24 Absorbed by Shields . | . . . . . Regen/Repaired (Parts) 60 | . . . 60 . Core Remaining (%) 89 | 100 . 78 . . Volleys Fired 42 | . 20 1 18 3 Largest 2 | . 2 1 2 2 Hottest 112 | . 112 30 100 90 Shots Fired 80 | . 39 1 34 6 Gun 70 | . 32 . 32 6 Cannon 7 | . 7 . . . Launcher 3 | . . 1 2 . Special . | . . . . . Kinetic 16 | . 16 . . . Thermal . | . . . . . Explosive 3 | . . 1 2 . Electromagnetic 61 | . 23 . 32 6 Robot Hit Streak 15 | . 15 . 7 5 Robot Miss Streak 3 | . 2 . 3 1 Penetration Max . | . . . . . Secondary Targets 2 | . 1 . 1 . Max Gunslinging Chain 1 | . 1 . 1 . Shots Hit Robots 53 | . 31 . 18 4 Core Hits 44 | . 21 4 18 1 Critical Kills . | . . . . . Critical Parts Destroyed . | . . . . . Critical Strikes . | . . . . . Melee Attacks 5 | . 5 . . . Impact . | . . . . . Slashing 5 | . 5 . . . Piercing . | . . . . . Sneak Attacks . | . . . . . Combat Hostiles . | . . . . . Follow-up Attacks . | . . . . . Damage Inflicted 1669 | . 694 157 667 151 Guns 590 | . 267 . 261 62 Cannons 105 | . 105 . . . Explosions 856 | . 204 157 406 89 Melee 118 | . 118 . . . Ramming . | . . . . . Kinetic 106 | . 106 . . . Thermal 451 | . 204 . 158 89 Explosive 405 | . . 157 248 . Electromagnetic 589 | . 266 . 261 62 Impact . | . . . . . Slashing 118 | . 118 . . . Piercing . | . . . . . Highest Corruption 2 | . . . 2 2 Average Corruption 1 | . . . 1 2 Corruption Purged . | . . . . . Corruption Blocked . | . . . . . Effects 5 | . . . 5 . Message Errors 2 | . . . 2 . Matter Fused 1 | . . . 1 . Energy Discharges 1 | . . . 1 . Data Loss (minor) 1 | . . . 1 . Overload Shots . | . . . . . Overflow Damage 47 | . . 16 9 22 Projectiles . | . . . . . Explosions 47 | . . 16 9 22 Melee . | . . . . . Knockbacks . | . . . . . Impact . | . . . . . Kinetic . | . . . . . Secondary . | . . . . . Self-Inflicted Damage 72 | . . 6 26 40 Shots 3 | . . 1 1 1 Rammed . | . . . . . Targets Rammed . | . . . . . Kicked . | . . . . . Crushed . | . . . . . Highest Temperature 144 | . 83 . 72 144 Average Temperature 31 | . 24 . 29 79 Received Heat Transfer 234 | . 108 . 51 75 Siege Activations . | . . . . . Robots Corrupted . | . . . . . Combat Hostiles . | . . . . . Parts Fried . | . . . . . Impact Corruptions . | . . . . . Robots Melted . | . . . . . Combat Hostiles . | . . . . . Parts Melted 1 | . . . 1 . Heat Transferred 600 | . 300 . 200 100 Parts Sabotaged . | . . . . . Parts Stolen . | . . . . . Parts Stripped . | . . . . . Power Chain Reactions 5 | . 3 . 1 1 Missiles Intercepted . | . . . . . Alert | -11 -10 -10 -9 -9 ------- Run | Scr Mat Min Mat Min Peak Influence 401 | . 315 159 401 105 Initial 61 | . . 44 61 34 Average 155 | . 158 116 207 79 Maximum Alert Level 2 | . 1 . 2 . Low Security (%) 76 | 100 83 100 50 100 Level 1 21 | . 16 . 43 . Level 2 1 | . . . 5 . Level 3 . | . . . . . Level 4 . | . . . . . Level 5 . | . . . . . High Security . | . . . . . Max Security . | . . . . . Squads Dispatched 6 | . 3 . 3 . Investigation 2 | . 1 . 1 . Extermination . | . . . . . Reinforcement 4 | . 2 . 2 . Assault . | . . . . . Garrison . | . . . . . Intercept . | . . . . . Searches Triggered . | . . . . . Construction Impeded . | . . . . . Haulers Reinforced . | . . . . . Active Scanning Responses . | . . . . . Cargo Convoy Interrupts . | . . . . . Stealth | -11 -10 -10 -9 -9 --------- Run | Scr Mat Min Mat Min Distress Signals 3 | . 1 . 2 . Communications Jammed . | . . . . . Distress Signals . | . . . . . Times Spotted 44 | . 15 3 20 6 Peak Tracking Total 6 | . 5 3 6 3 Tactical Retreats 2 | . . . 1 1 Traps | -11 -10 -10 -9 -9 ------- Run | Scr Mat Min Mat Min Traps Triggered 2 | . . . 2 . Indirectly . | . . . . . Trap Hack Attempts . | . . . . . Triggered . | . . . . . Disarmed . | . . . . . Reprogrammed . | . . . . . Reused . | . . . . . Traps Extracted . | . . . . . Installed . | . . . . . Triggered . | . . . . . Most Traps Carried 2 | . . 2 2 1 Machines | -11 -10 -10 -9 -9 ---------- Run | Scr Mat Min Mat Min Machines Disabled 4 | . 1 . 3 . Max in Single Turn 1 | . 1 . 1 . Machines Sabotaged . | . . . . . Garrisons Compromised . | . . . . . Overloaded Fab Kills . | . . . . . Hacking | -11 -10 -10 -9 -9 --------- Run | Scr Mat Min Mat Min Machines Accessed 7 | . 2 . 5 . Terminals 4 | . 1 . 3 . Fabricators . | . . . . . Repair Stations 1 | . . . 1 . Recycling Units 1 | . 1 . . . Scanalyzers 1 | . . . 1 . Garrison Access . | . . . . . Total Hacks 22 | . 7 . 15 . Successful 16 | . 2 . 14 . Failed 6 | . 5 . 1 . Catastrophic . | . . . . . Database Lockouts . | . . . . . Manual . | . . . . . Terminals 12 | . 3 . 9 . Fabricators . | . . . . . Repair Stations 4 | . . . 4 . Recycling Units 4 | . 4 . . . Scanalyzers 2 | . . . 2 . Garrison Access . | . . . . . Terminal Hacks 9 | . 1 . 8 . Branch Access Points 1 | . . . 1 . Alert Level 1 | . . . 1 . Unreport Threat 2 | . . . 2 . Locate Traps 1 | . . . 1 . Transport Status 1 | . . . 1 . Hauler Manifests 1 | . . . 1 . Zone Layout 2 | . 1 . 1 . Fabricator Hacks . | . . . . . Repair Station Hacks 4 | . . . 4 . Scan Component 2 | . . . 2 . Repair 2 | . . . 2 . Recycling Unit Hacks 1 | . 1 . . . Retrieve Components 1 | . 1 . . . Scanalyzer 2 | . . . 2 . Insert Component 1 | . . . 1 . Analyze 1 | . . . 1 . Garrison Access Hacks . | . . . . . Unauthorized Hacks . | . . . . . Terminals . | . . . . . Fabricators . | . . . . . Repair Stations . | . . . . . Recycling Units . | . . . . . Scanalyzers . | . . . . . Garrison Access . | . . . . . Data Cores Recovered 1 | . 1 . . . Used . | . . . . . Hacking Detections 5 | . 2 . 3 . Full Trace Events 2 | . 1 . 1 . Feedback Events . | . . . . . Feedback Blocked . | . . . . . Robot Schematics Acquired . | . . . . . Robots Built . | . . . . . Authchips . | . . . . . Time . | . . . . . Total Robot Build Rating . | . . . . . Part Schematics Acquired 1 | . . . 1 . Parts Built . | . . . . . Authchips . | . . . . . Time . | . . . . . Total Part Build Rating . | . . . . . Parts Repaired 2 | . . . 2 . Time 52 | . . . 52 . Parts Recycled . | . . . . . Recycled Matter . | . . . . . Retrieved Matter . | . . . . . Retrieved Components 6 | . 6 . . . Parts Scanalyzed 1 | . . . 1 . Part Schematics Acquired 1 | . . . 1 . Parts Damaged . | . . . . . Bothacking | -11 -10 -10 -9 -9 ------------ Run | Scr Mat Min Mat Min Used RIF Installer . | . . . . . Robots Hacked . | . . . . . Non-combat . | . . . . . Combat . | . . . . . Robot Hacks Applied . | . . . . . Relay Couplers Released . | . . . . . Fabnet Peak Effective % . | . . . . . Robots Rewired . | . . . . . Allies Hacked . | . . . . . Hacks Repelled . | . . . . . Allies | -11 -10 -10 -9 -9 -------- Run | Scr Mat Min Mat Min Total Allies 4 | . . 4 . . Largest Group 4 | . . 4 4 . Highest-Rated Group 71 | . . 71 71 . Highest-Rated Ally 31 | . . 31 31 . Total Orders . | . . . . . Ally Attacks 52 | . . 6 46 . Total Damage 697 | . . 45 652 . Kills 8 | . . 1 7 . Allies Corrupted . | . . . . . Allies Melted . | . . . . . Intel | -11 -10 -10 -9 -9 ------- Run | Scr Mat Min Mat Min Robot Analysis Total . | . . . . . Derelict Logs Recovered . | . . . . . Drone Launches . | . . . . . Drone Recoveries . | . . . . . Exploration | -11 -10 -10 -9 -9 ------------- Run | Scr Mat Min Mat Min Turns Passed 1157 | 53 416 193 405 90 Spaces Moved 1036 | 51 340 153 395 97 Core 19 | 19 . . . . Treads . | . . . . . Legs 45 | . 45 . . . Wheels 166 | 32 134 . . . Hover 806 | . 161 153 395 97 Flight . | . . . . . Fastest Speed 50 | 50 56 56 52 52 Average Speed 77 | 81 82 111 65 52 Slowest Speed 190 | 100 190 180 180 52 Overloaded Moves . | . . . . . Propulsion Burnouts . | . . . . . Robots Hopped . | . . . . . Cave-ins Triggered . | . . . . . Exploration Rate (%) 29 | 3 44 29 57 14 Regions Visited 4 Branch Regions 2 Pre-discovered Areas . | . . . . . Known Exits Taken 1 | . . . 1 . Unknown Exits Taken 3 | 1 1 1 . . Scrap Searched 2 | . . 1 . 1 Spaces Dug . | . . . . . Terrain Destroyed 27 | . 6 8 5 8 Melee . | . . . . . Projectile . | . . . . . AOE 27 | . 6 8 5 8 Terrain Rammed . | . . . . . Walls Destroyed . | . . . . . Machines Disabled . | . . . . . Actions | -11 -10 -10 -9 -9 --------- Run | Scr Mat Min Mat Min Total 1300 | 61 426 176 507 130 Wait 138 | . 32 14 66 26 Move 1032 | 50 339 152 394 97 Hop . | . . . . . Pick Up 25 | 5 11 4 4 1 Fast Attach 15 | 2 3 . 10 . Attach 10 | 4 5 . 1 . Detach 3 | . 1 . 2 . Swap 10 | . 3 2 3 2 Drop 20 | . 7 3 9 1 Fire 42 | . 20 1 18 3 Melee 5 | . 5 . . . Ram . | . . . . . Kick . | . . . . . Crush . | . . . . . Escape Stasis . | . . . . . Rewire . | . . . . . Trap . | . . . . . Miscellaneous . | . . . . . Route ------- -11/Scrapyard -10/Materials (discovered 2 exits: *Mat / [*Min]) -10/Mines -9/Materials (discovered 3 exits: [*Mat] / *Min x2) -9/Mines History --------- Turn | Location | Event 8 | -11/Scrapyard | Discovered new exit (range 15) 54 | -11/Scrapyard | Entered Materials 234 | -10/Materials | Discovered new exit (range 16) 315 | -10/Materials | Build established: Mutant 351 | -10/Materials | Discovered new exit (range 17) 470 | -10/Materials | Entered Mines 479 | -10/Mines | Found a hidden stash of uninstalled traps 508 | -10/Mines | Assisted by bots powering up and referring to "LRC-V3" 553 | -10/Mines | Discovered new exit (range 5) 571 | -10/Mines | Received a Mining Laser from a helpful Derelict 663 | -10/Mines | Entered Materials 663 | -9/Materials | Accompanied by 4 allies 663 | -9/Materials | Evolved 2 slots: Propulsion x1, Utility x1 832 | -9/Materials | Identified exit to Mines 906 | -9/Materials | Discovered new exit (range 12) 1024 | -9/Materials | Build established: Scavenger-Mutant 1033 | -9/Materials | Repaired Grenade Launcher 1060 | -9/Materials | Repaired Hover Unit 1068 | -9/Materials | Entered Mines 1158 | -9/Mines | Self-destructed Last Messages --------------- >>Repair Repairing Hover Unit... ETC: 26 01060_ Repair station completes Hover Unit repairs. 01060_ Acquired Hover Unit. LOCATION=MINES GOAL=ESCAPE Something is scanning the area. 01093_ Searching scrap... 01093_ Found Field Recycling Unit. 01093_ Found Plasma Cutter. 01093_ Found Med. Armor Plating. 01093_ Found 14 Matter. 01094_ Acquired 14 matter. 01099_ Dropped Hover Unit. 01100_ Acquired Plasma Cutter. 01149_ Chain reaction triggered in Lgt. Nuclear Core. 01149_ Hover Unit destroyed. 01149_ Destroyed Hover Unit. 01152_ Hover Unit destroyed. Map ----- +----------------------------------------------------+ | | | | | | | | | | | | | | | | | | | | | | | | | | | | | | | | | ?????????????????????????????????????? | | ?????????????????????????????????????? | | ?????????????????????????????????????? | | ?????????????????????????????????????? | | ???????####??????????????????????????? | | ??????## !#######????????????????????? | | ??????# = ;;; ##???????????????????? | | ?????## ! ##??????????????????? | | ?????# g g ##?????????????????? | | ?????# #;;@ ##????????????????? | | ?????# # ;; ##???????????????? | | ?????# ##### ##??????????????? | | ?????# ##??## ##?????????????? | | ?????# #???## ##????????????? | | ?????## #????### #????????????? | | ??????## ##??????## #????????????? | | ???????## #????????# #????????????? | | ????????# #???????## ##????????????? | | ???####?# ####????# ##?????????????? | | ??## ### #????# #??????????????? | | ??# #### #????## ##??????????????? | | ??# #?# #########???????????????? | | ?## #?# #??????????????????? | | ?# ##?###### #??????????????????? | | ?# ###???????# #??????????????????? | | ?# ##?????????# #??????????????????? | | ?# #??????????# #??????????????????? | | ?## #??????????# #??????????????????? | | ??# ############ ###????????????????? | | ??# #????????????????? | | ??# #????????????????? | | ??################ #????????????????? | | ?????????????????? #????????????????? | | ?????????????????? #????????????????? | +----------------------------------------------------+ Best States ------------- Heat Dissipation 28 Energy Generation 14 Energy Capacity 280 Matter Stores 300 Matter Capacity 300 Sight Range 16 Terrain Scan Density 10 Additional Mass Support 6 Evasion (%) 55 Offensive Hacking 10 Item Schematics ----------------- Hover Unit | -9/Materials | Scanalyzed Robot Schematics ------------------ None Fabricated ------------ Nothing Alien Tech Used ----------------- None Achievements -------------- None Challenges ------------ None Game ------ Seed BoreEfficiencyMinigun Manual? 0 Play Time 00:14:29 Cumulative 41.4 hours Start 2022.03.28 @ 10:10:54 End 2022.03.28 @ 10:25:46 Sessions 1 Manual Loads 0 Difficulty Rogue Special Mode None Game No. 121 Rogue 121 Adventurer 0 Explorer 0 Win Type - Total 0 Types 0/0/0/0/0/0/0/0/0 Lore% 34 Gallery% 45 Achievement% 35 Wizard Run 0 Options --------- ASCII 0 Keyboard 0 Movement Mouse Keybinds 0 Fullscreen 1 Font 18/SmallcapsGlow Map View 76x50 Tactical HUD 1 Map Filters NONE Filters NONE Steam 1 RUN: f9a26fff-98dd-4e15-9ab2-96c52ee4ffcf